[Event "Early-Titled-Tuesday-Blitz-September-12-2023"]
[Site "Chess.com"]
[Date "2023.09.12"]
[Round "8"]
[White "Eloist"]
[Black "JiiHart"]
[Result "1-0"]
[WhiteElo "2482"]
[BlackElo "2154"]
[TimeControl "180+1"]
[EndTime "9:27:59 PDT"]
[Termination "Eloist won by resignation"]

1. e4 {[%clk 0:03:00.9]} 1... c5 {[%clk 0:02:59.6]} 2. Nf3 {[%clk 0:03:00.4]}
2... Nc6 {[%clk 0:02:59.7]} 3. Bb5 {[%clk 0:03:00.1]} 3... e6 {[%clk 0:02:59.5]}
4. Bxc6 {[%clk 0:02:57.9]} 4... bxc6 {[%clk 0:03:00.4]} 5. Qe2 {[%clk
0:02:51.7]} 5... Ne7 {[%clk 0:02:58.3]} 6. d3 {[%clk 0:02:49.9]} 6... Ng6 {[%clk
0:02:57.9]} 7. h4 {[%clk 0:02:49.4]} 7... h5 {[%clk 0:02:57.1]} 8. e5 {[%clk
0:02:47.3]} 8... Be7 {[%clk 0:02:56.6]} 9. Qe4 {[%clk 0:02:44.4]} 9... Qc7
{[%clk 0:02:52.7]} 10. Bg5 {[%clk 0:02:36.1]} 10... Bb7 {[%clk 0:02:39.8]} 11.
Bxe7 {[%clk 0:02:34.5]} 11... Nxe7 {[%clk 0:02:27.3]} 12. Nbd2 {[%clk
0:02:28.6]} 12... d5 {[%clk 0:01:50.2]} 13. exd6 {[%clk 0:02:21.2]} 13... Qxd6
{[%clk 0:01:50.1]} 14. Qc4 {[%clk 0:02:08]} 14... Qd5 {[%clk 0:01:47.8]} 15. Ne4
{[%clk 0:02:05.9]} 15... O-O {[%clk 0:01:16.4]} 16. Qxd5 {[%clk 0:02:02.4]}
16... cxd5 {[%clk 0:01:07.1]} 17. Nxc5 {[%clk 0:02:02.2]} 17... Bc6 {[%clk
0:01:06.6]} 18. O-O {[%clk 0:01:54.1]} 18... Rfc8 {[%clk 0:01:05.1]} 19. d4
{[%clk 0:01:53.7]} 19... Nf5 {[%clk 0:01:00.1]} 20. c3 {[%clk 0:01:53.2]} 20...
Bb5 {[%clk 0:00:55.9]} 21. Rfe1 {[%clk 0:01:53]} 21... a5 {[%clk 0:00:53.8]} 22.
a4 {[%clk 0:01:51.5]} 22... Bc4 {[%clk 0:00:53.3]} 23. g3 {[%clk 0:01:48.6]}
23... Rab8 {[%clk 0:00:50.7]} 24. Reb1 {[%clk 0:01:32.6]} 24... Be2 {[%clk
0:00:34.3]} 25. Ne5 {[%clk 0:01:30.1]} 25... f6 {[%clk 0:00:26.9]} 26. Ned7
{[%clk 0:01:22.7]} 26... e5 {[%clk 0:00:15.8]} 27. Nxb8 {[%clk 0:01:21.5]} 27...
Rxb8 {[%clk 0:00:16.7]} 28. dxe5 {[%clk 0:01:14.5]} 28... fxe5 {[%clk
0:00:16.9]} 29. b4 {[%clk 0:01:14.5]} 29... d4 {[%clk 0:00:12.8]} 30. bxa5
{[%clk 0:01:13.3]} 30... Ra8 {[%clk 0:00:12.2]} 31. cxd4 {[%clk 0:01:12.1]}
31... exd4 {[%clk 0:00:11.9]} 32. Ra3 {[%clk 0:00:54.4]} 32... d3 {[%clk
0:00:11.7]} 33. Nxd3 {[%clk 0:00:53.3]} 33... Nd4 {[%clk 0:00:10.8]} 34. Nf4
{[%clk 0:00:50.3]} 34... Nf3+ {[%clk 0:00:09.2]} 35. Kg2 {[%clk 0:00:49.6]}
35... Rxa5 {[%clk 0:00:08.2]} 36. Nxe2 {[%clk 0:00:48.5]} 1-0

[Event "Early-Titled-Tuesday-Blitz-September-12-2023"]
[Site "Chess.com"]
[Date "2023.09.12"]
[Round "8"]
[White "ElenaPershina"]
[Black "Shockerlover"]
[Result "1-0"]
[WhiteElo "2260"]
[BlackElo "1988"]
[TimeControl "180+1"]
[EndTime "9:27:59 PDT"]
[Termination "ElenaPershina won by checkmate"]

1. c4 {[%clk 0:03:00.9]} 1... c5 {[%clk 0:02:58.9]} 2. g3 {[%clk 0:02:59.6]}
2... Nc6 {[%clk 0:02:59.3]} 3. Bg2 {[%clk 0:02:59.8]} 3... Nf6 {[%clk
0:02:59.6]} 4. Nf3 {[%clk 0:02:58.8]} 4... g6 {[%clk 0:02:57.6]} 5. Nc3 {[%clk
0:02:53.4]} 5... Bg7 {[%clk 0:02:58]} 6. a3 {[%clk 0:02:47.2]} 6... O-O {[%clk
0:02:58.3]} 7. O-O {[%clk 0:02:41.9]} 7... e6 {[%clk 0:02:58.3]} 8. d4 {[%clk
0:02:26.7]} 8... cxd4 {[%clk 0:02:55.3]} 9. Nxd4 {[%clk 0:02:23.6]} 9... Qb6
{[%clk 0:02:47.3]} 10. Ndb5 {[%clk 0:02:17.5]} 10... Ne5 {[%clk 0:02:27.7]} 11.
Be3 {[%clk 0:02:13.6]} 11... Qd8 {[%clk 0:02:20.8]} 12. Nd6 {[%clk 0:02:12.1]}
12... Ne8 {[%clk 0:02:13.9]} 13. c5 {[%clk 0:01:51.6]} 13... Nxd6 {[%clk
0:01:39.1]} 14. cxd6 {[%clk 0:01:52.5]} 14... Nc4 {[%clk 0:01:38.4]} 15. Bf4
{[%clk 0:01:29.2]} 15... Nxb2 {[%clk 0:01:29.8]} 16. Qb3 {[%clk 0:01:27.5]}
16... Qb6 {[%clk 0:01:27.2]} 17. Qxb6 {[%clk 0:00:59.3]} 17... axb6 {[%clk
0:01:26.7]} 18. Nb5 {[%clk 0:00:59]} 18... Nc4 {[%clk 0:01:18.3]} 19. Ra2 {[%clk
0:00:55.7]} 19... Ra5 {[%clk 0:01:15.2]} 20. a4 {[%clk 0:00:55.1]} 20... e5
{[%clk 0:01:11.2]} 21. Rc1 {[%clk 0:00:49.3]} 21... exf4 {[%clk 0:00:55.8]} 22.
Rxc4 {[%clk 0:00:48.3]} 22... fxg3 {[%clk 0:00:53.9]} 23. hxg3 {[%clk
0:00:44.8]} 23... Re8 {[%clk 0:00:53.4]} 24. Rac2 {[%clk 0:00:42.2]} 24... Be5
{[%clk 0:00:26.6]} 25. Rxc8 {[%clk 0:00:39.2]} 25... Rxc8 {[%clk 0:00:24.4]} 26.
Rxc8+ {[%clk 0:00:40.1]} 26... Kg7 {[%clk 0:00:24.8]} 27. Rc4 {[%clk 0:00:38.4]}
27... Kf6 {[%clk 0:00:23]} 28. f4 {[%clk 0:00:35.8]} 28... Bb2 {[%clk
0:00:21.5]} 29. e4 {[%clk 0:00:35.3]} 29... Ke6 {[%clk 0:00:21.3]} 30. e5 {[%clk
0:00:34.3]} 30... Kf5 {[%clk 0:00:20.1]} 31. Bh3# {[%clk 0:00:29.2]} 1-0

[Event "Early-Titled-Tuesday-Blitz-September-12-2023"]
[Site "Chess.com"]
[Date "2023.09.12"]
[Round "8"]
[White "play1ngtheangel"]
[Black "ShahMatKanal"]
[Result "1-0"]
[WhiteElo "2650"]
[BlackElo "2499"]
[TimeControl "180+1"]
[EndTime "9:28:00 PDT"]
[Termination "play1ngtheangel won on time"]

1. e4 {[%clk 0:03:00.9]} 1... g6 {[%clk 0:02:57.3]} 2. d4 {[%clk 0:02:57.9]}
2... d6 {[%clk 0:02:57.6]} 3. Nc3 {[%clk 0:02:58.3]} 3... Bg7 {[%clk 0:02:58.1]}
4. Be3 {[%clk 0:02:59]} 4... Nf6 {[%clk 0:02:57.5]} 5. Qd2 {[%clk 0:02:58.8]}
5... Ng4 {[%clk 0:02:54.4]} 6. Bg5 {[%clk 0:02:58.7]} 6... h6 {[%clk 0:02:54]}
7. Bh4 {[%clk 0:02:59.3]} 7... Nc6 {[%clk 0:02:38.4]} 8. f3 {[%clk 0:02:54.8]}
8... Nf6 {[%clk 0:02:34]} 9. O-O-O {[%clk 0:02:55.1]} 9... O-O {[%clk
0:02:21.2]} 10. g4 {[%clk 0:02:54.9]} 10... e5 {[%clk 0:02:09.5]} 11. dxe5
{[%clk 0:02:43.3]} 11... Nxe5 {[%clk 0:02:08.9]} 12. h3 {[%clk 0:02:39.7]} 12...
Nxe4 {[%clk 0:01:39.9]} 13. Nxe4 {[%clk 0:02:13.1]} 13... Qxh4 {[%clk 0:01:38]}
14. f4 {[%clk 0:02:14]} 14... Nc6 {[%clk 0:01:24.8]} 15. g5 {[%clk 0:02:11.4]}
15... hxg5 {[%clk 0:01:20.8]} 16. Nxg5 {[%clk 0:02:06.9]} 16... Bf5 {[%clk
0:01:03.6]} 17. N1f3 {[%clk 0:02:06.7]} 17... Qh8 {[%clk 0:00:59.9]} 18. c3
{[%clk 0:02:07.1]} 18... d5 {[%clk 0:00:55.3]} 19. Bd3 {[%clk 0:01:48.3]} 19...
Bxd3 {[%clk 0:00:46.7]} 20. Qxd3 {[%clk 0:01:48.6]} 20... d4 {[%clk 0:00:43.7]}
21. f5 {[%clk 0:01:46.2]} 21... dxc3 {[%clk 0:00:42.5]} 22. fxg6 {[%clk
0:01:46.5]} 22... Rad8 {[%clk 0:00:18.7]} 23. gxf7+ {[%clk 0:01:40.5]} 23...
Rxf7 {[%clk 0:00:18.4]} 24. Qc4 {[%clk 0:01:41.2]} 24... cxb2+ {[%clk 0:00:17]}
25. Kb1 {[%clk 0:01:41.3]} 25... Rf8 {[%clk 0:00:16.9]} 26. Rd7 {[%clk
0:01:31.1]} 26... Qh5 {[%clk 0:00:16.7]} 27. Rxf7 {[%clk 0:01:27.9]} 27... Rxf7
{[%clk 0:00:12.9]} 28. Re1 {[%clk 0:01:18.6]} 28... Qg6+ {[%clk 0:00:12.6]} 29.
Re4 {[%clk 0:01:19.2]} 29... b5 {[%clk 0:00:10.5]} 30. Qd5 {[%clk 0:01:13.7]}
30... Ne7 {[%clk 0:00:07.1]} 31. Qb3 {[%clk 0:01:01.4]} 31... Kh8 {[%clk
0:00:05.3]} 32. Nxf7+ {[%clk 0:01:00]} 32... Kh7 {[%clk 0:00:05.7]} 33. N7g5+
{[%clk 0:01:00.6]} 33... Kh6 {[%clk 0:00:05.9]} 34. Qe6 {[%clk 0:00:56.3]} 34...
Nf5 {[%clk 0:00:03.6]} 35. Nf7+ {[%clk 0:00:55.5]} 35... Kh7 {[%clk 0:00:03.4]}
36. N3g5+ {[%clk 0:00:55.5]} 1-0

[Event "Early-Titled-Tuesday-Blitz-September-12-2023"]
[Site "Chess.com"]
[Date "2023.09.12"]
[Round "8"]
[White "shimastream"]
[Black "econpower"]
[Result "1-0"]
[WhiteElo "2958"]
[BlackElo "2765"]
[TimeControl "180+1"]
[EndTime "9:28:02 PDT"]
[Termination "shimastream won by resignation"]

1. c4 {[%clk 0:02:59.9]} 1... g6 {[%clk 0:02:58]} 2. Nc3 {[%clk 0:02:57]} 2...
Bg7 {[%clk 0:02:53.4]} 3. g3 {[%clk 0:02:57.2]} 3... d6 {[%clk 0:02:53.5]} 4. d4
{[%clk 0:02:54.9]} 4... Nd7 {[%clk 0:02:53]} 5. Bg2 {[%clk 0:02:54.3]} 5... e5
{[%clk 0:02:53.2]} 6. e3 {[%clk 0:02:48.9]} 6... Ne7 {[%clk 0:02:41.8]} 7. Nge2
{[%clk 0:02:48.4]} 7... O-O {[%clk 0:02:42]} 8. O-O {[%clk 0:02:48.6]} 8... f5
{[%clk 0:02:42]} 9. Rb1 {[%clk 0:02:48.9]} 9... a5 {[%clk 0:02:36]} 10. a3
{[%clk 0:02:48.6]} 10... g5 {[%clk 0:02:26]} 11. f4 {[%clk 0:02:41.4]} 11...
gxf4 {[%clk 0:02:13.5]} 12. exf4 {[%clk 0:02:40.1]} 12... e4 {[%clk 0:02:13]}
13. Be3 {[%clk 0:02:29.8]} 13... c6 {[%clk 0:02:05.3]} 14. b4 {[%clk 0:02:29.3]}
14... axb4 {[%clk 0:02:05.2]} 15. axb4 {[%clk 0:02:30.2]} 15... d5 {[%clk
0:02:04]} 16. c5 {[%clk 0:02:04.8]} 16... b5 {[%clk 0:02:03.8]} 17. Ra1 {[%clk
0:01:48]} 17... Bb7 {[%clk 0:02:03.7]} 18. h3 {[%clk 0:01:45.4]} 18... Nf6
{[%clk 0:02:01.6]} 19. Qd2 {[%clk 0:01:41.8]} 19... Qd7 {[%clk 0:01:59.4]} 20.
Rfb1 {[%clk 0:01:41.6]} 20... h5 {[%clk 0:01:58.3]} 21. Nc1 {[%clk 0:01:38.8]}
21... Rxa1 {[%clk 0:01:56.9]} 22. Rxa1 {[%clk 0:01:38.7]} 22... Ra8 {[%clk
0:01:57.8]} 23. Rxa8+ {[%clk 0:01:37.7]} 23... Bxa8 {[%clk 0:01:58.7]} 24. Nb3
{[%clk 0:01:36.5]} 24... Bb7 {[%clk 0:01:52.5]} 25. Qf2 {[%clk 0:01:34.1]} 25...
Ng6 {[%clk 0:01:45.9]} 26. Bf1 {[%clk 0:01:33.2]} 26... Bf8 {[%clk 0:01:43.3]}
27. Be2 {[%clk 0:01:33.3]} 27... Kh7 {[%clk 0:01:43.6]} 28. Nd1 {[%clk
0:01:27.3]} 28... Bc8 {[%clk 0:01:39.2]} 29. Bd2 {[%clk 0:01:26.6]} 29... Be7
{[%clk 0:01:38]} 30. Ne3 {[%clk 0:01:26.2]} 30... Bd8 {[%clk 0:01:38.5]} 31. Ng2
{[%clk 0:01:14.7]} 31... Qg7 {[%clk 0:01:37.2]} 32. Kh2 {[%clk 0:01:14]} 32...
Qa7 {[%clk 0:01:36.7]} 33. Na5 {[%clk 0:01:13.5]} 33... Bxa5 {[%clk 0:01:35]}
34. bxa5 {[%clk 0:01:14.4]} 34... Qc7 {[%clk 0:01:24.5]} 35. Qe1 {[%clk
0:01:10.8]} 35... Kg7 {[%clk 0:01:06.8]} 36. Qd1 {[%clk 0:01:05.8]} 36... Kh6
{[%clk 0:00:46.6]} 37. Kg1 {[%clk 0:01:05.8]} 37... Ne7 {[%clk 0:00:37]} 38. Ne3
{[%clk 0:01:04.9]} 38... Kg6 {[%clk 0:00:31]} 39. Nc2 {[%clk 0:01:04.3]} 39...
Ba6 {[%clk 0:00:18.8]} 40. Nb4 {[%clk 0:01:04.4]} 40... Qa7 {[%clk 0:00:18.9]}
41. g4 {[%clk 0:00:59.3]} 41... hxg4 {[%clk 0:00:18.5]} 42. hxg4 {[%clk
0:01:00.2]} 42... fxg4 {[%clk 0:00:18.7]} 43. Bxg4 {[%clk 0:01:00.1]} 43... Kf7
{[%clk 0:00:18.6]} 44. Bh3 {[%clk 0:00:53.6]} 44... Bc8 {[%clk 0:00:18.1]} 45.
Bxc8 {[%clk 0:00:52.9]} 45... Nxc8 {[%clk 0:00:18.3]} 46. Nxc6 {[%clk
0:00:53.6]} 46... Qd7 {[%clk 0:00:18.9]} 47. Ne5+ {[%clk 0:00:53.8]} 1-0

[Event "Early-Titled-Tuesday-Blitz-September-12-2023"]
[Site "Chess.com"]
[Date "2023.09.12"]
[Round "8"]
[White "AleksandrAleksikov"]
[Black "Chessbard1972"]
[Result "1-0"]
[WhiteElo "2285"]
[BlackElo "2446"]
[TimeControl "180+1"]
[EndTime "9:28:07 PDT"]
[Termination "AleksandrAleksikov won by resignation"]

1. e4 {[%clk 0:03:00.9]} 1... e5 {[%clk 0:02:58.1]} 2. Nf3 {[%clk 0:03:00.6]}
2... Nc6 {[%clk 0:02:55.7]} 3. c3 {[%clk 0:03:00.6]} 3... Nf6 {[%clk 0:02:50.4]}
4. d4 {[%clk 0:02:59.4]} 4... d5 {[%clk 0:02:41.9]} 5. Bb5 {[%clk 0:02:57.1]}
5... Nxe4 {[%clk 0:02:38.3]} 6. Nxe5 {[%clk 0:02:54.5]} 6... Bd7 {[%clk
0:02:38.5]} 7. Qb3 {[%clk 0:02:45.7]} 7... Nxe5 {[%clk 0:02:26.9]} 8. Qxd5
{[%clk 0:02:43.5]} 8... Bxb5 {[%clk 0:02:13.1]} 9. Qxe5+ {[%clk 0:02:33.4]} 9...
Qe7 {[%clk 0:02:12.2]} 10. Qxb5+ {[%clk 0:02:32.5]} 10... c6 {[%clk 0:02:10.2]}
11. Qe2 {[%clk 0:02:31.9]} 11... O-O-O {[%clk 0:02:07.8]} 12. Nd2 {[%clk
0:02:14.5]} 12... f5 {[%clk 0:01:58.8]} 13. Nxe4 {[%clk 0:01:50.6]} 13... fxe4
{[%clk 0:01:57.7]} 14. Bf4 {[%clk 0:01:47.9]} 14... g5 {[%clk 0:01:47.2]} 15.
Qg4+ {[%clk 0:01:42.1]} 15... Qd7 {[%clk 0:01:46.8]} 16. Qxd7+ {[%clk
0:01:39.2]} 16... Rxd7 {[%clk 0:01:45.1]} 17. Bxg5 {[%clk 0:01:39]} 17... Rg8
{[%clk 0:01:44.8]} 18. Bf4 {[%clk 0:01:37.4]} 18... h5 {[%clk 0:01:39.4]} 19. g3
{[%clk 0:01:31.3]} 19... h4 {[%clk 0:01:38.7]} 20. O-O {[%clk 0:01:29.9]} 20...
Bd6 {[%clk 0:01:35.8]} 21. Bxd6 {[%clk 0:01:26.9]} 21... Rxd6 {[%clk 0:01:35.7]}
22. Rae1 {[%clk 0:01:26.3]} 22... Re6 {[%clk 0:01:35.1]} 23. Re3 {[%clk
0:01:24.8]} 23... Rh6 {[%clk 0:01:20.3]} 24. Rxe4 {[%clk 0:01:18.3]} 24... hxg3
{[%clk 0:01:20.4]} 25. fxg3 {[%clk 0:01:16]} 25... Rgh8 {[%clk 0:01:20.8]} 26.
Rf2 {[%clk 0:01:15.4]} 26... R8h7 {[%clk 0:01:18.1]} 27. Ref4 {[%clk 0:01:13.9]}
27... Kc7 {[%clk 0:01:16]} 28. Rf7+ {[%clk 0:01:12.5]} 28... Kd6 {[%clk
0:01:15.5]} 29. Rxh7 {[%clk 0:01:10.9]} 29... Rxh7 {[%clk 0:01:15.1]} 30. Re2
{[%clk 0:01:09.4]} 30... Kd5 {[%clk 0:01:13.8]} 31. Kg2 {[%clk 0:00:58.6]} 31...
Kc4 {[%clk 0:01:12.5]} 32. Re3 {[%clk 0:00:56.9]} 32... b5 {[%clk 0:01:10.4]}
33. b3+ {[%clk 0:00:54.1]} 33... Kd5 {[%clk 0:01:09.8]} 34. Re5+ {[%clk
0:00:52.5]} 34... Kd6 {[%clk 0:01:09.9]} 35. g4 {[%clk 0:00:49.5]} 35... a5
{[%clk 0:01:08.4]} 36. Kg3 {[%clk 0:00:47]} 36... a4 {[%clk 0:01:08.4]} 37. bxa4
{[%clk 0:00:43.9]} 37... bxa4 {[%clk 0:01:08.3]} 38. Ra5 {[%clk 0:00:43.3]}
38... Rf7 {[%clk 0:00:57.7]} 39. Rxa4 {[%clk 0:00:39]} 39... Kd5 {[%clk
0:00:56.6]} 40. Ra5+ {[%clk 0:00:32.7]} 40... Ke4 {[%clk 0:00:55.4]} 41. Re5+
{[%clk 0:00:30.8]} 41... Kd3 {[%clk 0:00:55.5]} 42. Rf5 {[%clk 0:00:30.3]} 42...
Ra7 {[%clk 0:00:54.7]} 43. Rf3+ {[%clk 0:00:29.7]} 43... Kc4 {[%clk 0:00:53.4]}
44. g5 {[%clk 0:00:29.1]} 44... Rxa2 {[%clk 0:00:53.5]} 45. h4 {[%clk
0:00:28.9]} 45... c5 {[%clk 0:00:52]} 46. dxc5 {[%clk 0:00:26.9]} 46... Kxc5
{[%clk 0:00:52.5]} 47. h5 {[%clk 0:00:26.9]} 47... Kd5 {[%clk 0:00:52.4]} 48. g6
{[%clk 0:00:26.5]} 48... Ke6 {[%clk 0:00:52.7]} 49. g7 {[%clk 0:00:25.3]} 1-0

[Event "Early-Titled-Tuesday-Blitz-September-12-2023"]
[Site "Chess.com"]
[Date "2023.09.12"]
[Round "8"]
[White "Shuvalov"]
[Black "sergeikim"]
[Result "0-1"]
[WhiteElo "2419"]
[BlackElo "2567"]
[TimeControl "180+1"]
[EndTime "9:28:14 PDT"]
[Termination "sergeikim won by resignation"]

1. d4 {[%clk 0:02:55.7]} 1... Nf6 {[%clk 0:02:59.9]} 2. c4 {[%clk 0:02:55.5]}
2... g6 {[%clk 0:03:00]} 3. Nc3 {[%clk 0:02:55.8]} 3... Bg7 {[%clk 0:03:00.1]}
4. e4 {[%clk 0:02:55.9]} 4... d6 {[%clk 0:03:00.4]} 5. Nf3 {[%clk 0:02:56.6]}
5... O-O {[%clk 0:03:00.5]} 6. Be2 {[%clk 0:02:57.3]} 6... e5 {[%clk 0:03:00.7]}
7. O-O {[%clk 0:02:57.8]} 7... exd4 {[%clk 0:03:00.8]} 8. Nxd4 {[%clk
0:02:57.8]} 8... Re8 {[%clk 0:03:01.2]} 9. f3 {[%clk 0:02:58.1]} 9... Nbd7
{[%clk 0:03:00.1]} 10. Be3 {[%clk 0:02:57.7]} 10... c6 {[%clk 0:03:00.5]} 11.
Kh1 {[%clk 0:02:55.3]} 11... a5 {[%clk 0:03:00.1]} 12. Qd2 {[%clk 0:02:54.4]}
12... a4 {[%clk 0:03:00.1]} 13. Rad1 {[%clk 0:02:53.5]} 13... Qa5 {[%clk
0:03:00.1]} 14. Nc2 {[%clk 0:02:43.7]} 14... Re6 {[%clk 0:02:59.7]} 15. Nd4
{[%clk 0:02:36.3]} 15... Re8 {[%clk 0:02:59.2]} 16. Nc2 {[%clk 0:02:36.6]} 16...
Bf8 {[%clk 0:02:59]} 17. Bf4 {[%clk 0:02:29.9]} 17... Ne5 {[%clk 0:02:58.5]} 18.
Rfe1 {[%clk 0:02:25.2]} 18... Nfd7 {[%clk 0:02:56.4]} 19. Bf1 {[%clk 0:02:24]}
19... Nc5 {[%clk 0:02:56.1]} 20. Bh6 {[%clk 0:02:12.6]} 20... Be7 {[%clk
0:02:53.9]} 21. Bg5 {[%clk 0:02:04.5]} 21... f6 {[%clk 0:02:53.9]} 22. Be3
{[%clk 0:02:04.1]} 22... Be6 {[%clk 0:02:52.2]} 23. Na3 {[%clk 0:01:57.3]} 23...
Bf7 {[%clk 0:02:37.5]} 24. Be2 {[%clk 0:01:55.2]} 24... Bf8 {[%clk 0:02:30.8]}
25. f4 {[%clk 0:01:53.2]} 25... Ned7 {[%clk 0:02:30.4]} 26. Bf3 {[%clk
0:01:53.3]} 26... Nb6 {[%clk 0:02:26.8]} 27. Bd4 {[%clk 0:01:46.1]} 27... Bg7
{[%clk 0:02:22.3]} 28. Qe2 {[%clk 0:01:19.6]} 28... Qb4 {[%clk 0:02:17.8]} 29.
Rc1 {[%clk 0:00:56.8]} 29... Nxc4 {[%clk 0:02:11.6]} 30. Nxc4 {[%clk 0:00:47.3]}
30... Bxc4 {[%clk 0:02:11.2]} 31. Qd2 {[%clk 0:00:45.8]} 31... Nd3 {[%clk
0:02:09.2]} 32. Rb1 {[%clk 0:00:30.9]} 32... Nxe1 {[%clk 0:02:06.9]} 33. Qxe1
{[%clk 0:00:29.9]} 33... Bd3 {[%clk 0:02:04.9]} 34. Rd1 {[%clk 0:00:27.9]} 34...
Qxd4 {[%clk 0:01:59.6]} 35. Be2 {[%clk 0:00:27.9]} 35... Qe3 {[%clk 0:01:49.4]}
36. Rxd3 {[%clk 0:00:25.9]} 36... Qxf4 {[%clk 0:01:49.1]} 37. Qd1 {[%clk
0:00:22.7]} 37... a3 {[%clk 0:01:44.8]} 38. b3 {[%clk 0:00:20.6]} 38... f5
{[%clk 0:01:30.9]} 39. exf5 {[%clk 0:00:17.3]} 39... Qxf5 {[%clk 0:01:29.3]} 40.
Bf1 {[%clk 0:00:13.9]} 40... Qf2 {[%clk 0:01:20.8]} 41. Rf3 {[%clk 0:00:11.7]}
41... Qe1 {[%clk 0:01:18.9]} 42. Qxd6 {[%clk 0:00:09.3]} 42... Bxc3 {[%clk
0:01:12]} 43. Qd7 {[%clk 0:00:06.1]} 43... Re7 {[%clk 0:01:08.7]} 44. Qd3 {[%clk
0:00:05.8]} 44... Bg7 {[%clk 0:01:06.8]} 45. h3 {[%clk 0:00:06.2]} 45... Rf8
{[%clk 0:01:01.5]} 46. Rxf8+ {[%clk 0:00:05.6]} 0-1

[Event "Early-Titled-Tuesday-Blitz-September-12-2023"]
[Site "Chess.com"]
[Date "2023.09.12"]
[Round "8"]
[White "Rakhmanov_Aleksandr"]
[Black "mishanick"]
[Result "0-1"]
[WhiteElo "2801"]
[BlackElo "3071"]
[TimeControl "180+1"]
[EndTime "9:28:16 PDT"]
[Termination "mishanick won on time"]

1. d4 {[%clk 0:03:00.9]} 1... Nf6 {[%clk 0:02:59.8]} 2. c4 {[%clk 0:03:00.9]}
2... e6 {[%clk 0:02:59.5]} 3. Nc3 {[%clk 0:03:01.6]} 3... d5 {[%clk 0:02:58.5]}
4. Bg5 {[%clk 0:02:59.6]} 4... c5 {[%clk 0:02:57.6]} 5. e3 {[%clk 0:02:56.4]}
5... cxd4 {[%clk 0:02:54.6]} 6. exd4 {[%clk 0:02:57.3]} 6... Be7 {[%clk
0:02:52.8]} 7. Nf3 {[%clk 0:02:57.6]} 7... h6 {[%clk 0:02:51.1]} 8. Bf4 {[%clk
0:02:52.9]} 8... Nc6 {[%clk 0:02:48.7]} 9. Bd3 {[%clk 0:02:52.4]} 9... dxc4
{[%clk 0:02:35.1]} 10. Bxc4 {[%clk 0:02:53.3]} 10... O-O {[%clk 0:02:17.5]} 11.
O-O {[%clk 0:02:53.1]} 11... b6 {[%clk 0:02:17.9]} 12. Re1 {[%clk 0:02:41.3]}
12... Bb7 {[%clk 0:02:17.2]} 13. a3 {[%clk 0:02:39.7]} 13... Rc8 {[%clk
0:02:15]} 14. Ba2 {[%clk 0:02:38.7]} 14... Na5 {[%clk 0:02:13.3]} 15. Ne5 {[%clk
0:02:38.5]} 15... Nd5 {[%clk 0:02:10.5]} 16. Qg4 {[%clk 0:02:16.3]} 16... Nxf4
{[%clk 0:02:08.4]} 17. Qxf4 {[%clk 0:02:17]} 17... Bg5 {[%clk 0:01:56.6]} 18.
Qg4 {[%clk 0:02:13.6]} 18... Bd2 {[%clk 0:01:50.9]} 19. Nxf7 {[%clk 0:01:32.7]}
19... Rxf7 {[%clk 0:01:48.9]} 20. Qxe6 {[%clk 0:00:51]} 20... Qf8 {[%clk
0:01:34.2]} 21. Re2 {[%clk 0:00:38.4]} 21... Bxc3 {[%clk 0:01:29.4]} 22. bxc3
{[%clk 0:00:39.1]} 22... Ba6 {[%clk 0:01:22.1]} 23. Qxf7+ {[%clk 0:00:20.3]}
23... Qxf7 {[%clk 0:01:23]} 24. Bxf7+ {[%clk 0:00:12.2]} 24... Kxf7 {[%clk
0:01:23.9]} 25. Re3 {[%clk 0:00:11.1]} 25... Nc4 {[%clk 0:01:24.5]} 26. Rf3+
{[%clk 0:00:11.1]} 26... Kg6 {[%clk 0:01:25.2]} 27. a4 {[%clk 0:00:10.1]} 27...
Re8 {[%clk 0:01:24.2]} 28. h4 {[%clk 0:00:05.7]} 28... Re7 {[%clk 0:01:18.3]}
29. Rf8 {[%clk 0:00:05.2]} 29... Bb7 {[%clk 0:01:12.2]} 30. Rd1 {[%clk
0:00:04.2]} 30... Bc6 {[%clk 0:01:07.6]} 31. d5 {[%clk 0:00:02.8]} 31... Bxa4
{[%clk 0:01:05.3]} 32. Rd4 {[%clk 0:00:03.5]} 32... Bb5 {[%clk 0:01:05.5]} 33.
d6 {[%clk 0:00:02.2]} 33... Rd7 {[%clk 0:01:06]} 34. h5+ {[%clk 0:00:02.5]}
34... Kh7 {[%clk 0:01:04.6]} 35. Rdf4 {[%clk 0:00:02]} 35... Nxd6 {[%clk
0:01:00.1]} 36. Rb8 {[%clk 0:00:02]} 36... Re7 {[%clk 0:00:42.7]} 37. Rff8
{[%clk 0:00:01.3]} 37... Ne8 {[%clk 0:00:43.4]} 0-1

[Event "Early-Titled-Tuesday-Blitz-September-12-2023"]
[Site "Chess.com"]
[Date "2023.09.12"]
[Round "8"]
[White "bescmelasti"]
[Black "cthulhuuu"]
[Result "1-0"]
[WhiteElo "2625"]
[BlackElo "2467"]
[TimeControl "180+1"]
[EndTime "9:28:16 PDT"]
[Termination "bescmelasti won on time"]

1. e4 {[%clk 0:03:00.9]} 1... d6 {[%clk 0:03:00.4]} 2. d4 {[%clk 0:03:00.4]}
2... Nf6 {[%clk 0:03:00.6]} 3. Nc3 {[%clk 0:03:00.3]} 3... c6 {[%clk 0:03:01.3]}
4. Nf3 {[%clk 0:02:56.3]} 4... Bg4 {[%clk 0:03:00.3]} 5. h3 {[%clk 0:02:55.5]}
5... Bh5 {[%clk 0:03:00.5]} 6. Bd3 {[%clk 0:02:54.5]} 6... e6 {[%clk 0:03:00.3]}
7. a4 {[%clk 0:02:48.2]} 7... d5 {[%clk 0:02:59.8]} 8. e5 {[%clk 0:02:48.1]}
8... Nfd7 {[%clk 0:02:58.8]} 9. g4 {[%clk 0:02:32.5]} 9... Bg6 {[%clk
0:02:58.7]} 10. a5 {[%clk 0:02:27.1]} 10... c5 {[%clk 0:02:58.2]} 11. Ne2 {[%clk
0:02:25.2]} 11... Nc6 {[%clk 0:02:52.2]} 12. a6 {[%clk 0:02:21.1]} 12... b6
{[%clk 0:02:47.9]} 13. c3 {[%clk 0:02:16.3]} 13... Be7 {[%clk 0:02:43.6]} 14.
Bb5 {[%clk 0:02:07.3]} 14... Rc8 {[%clk 0:02:43.4]} 15. Ng3 {[%clk 0:01:59]}
15... O-O {[%clk 0:02:36.2]} 16. h4 {[%clk 0:01:58.1]} 16... Be4 {[%clk
0:02:03.6]} 17. Nxe4 {[%clk 0:01:55.2]} 17... dxe4 {[%clk 0:02:03.2]} 18. Ng5
{[%clk 0:01:56.1]} 18... cxd4 {[%clk 0:02:01.5]} 19. cxd4 {[%clk 0:01:49.4]}
19... Bb4+ {[%clk 0:01:51.3]} 20. Ke2 {[%clk 0:01:49.2]} 20... Ndxe5 {[%clk
0:01:48.1]} 21. dxe5 {[%clk 0:01:37.1]} 21... Nd4+ {[%clk 0:01:44.7]} 22. Ke3
{[%clk 0:01:33.6]} 22... Qd5 {[%clk 0:00:43.2]} 23. Ba4 {[%clk 0:00:56.8]} 23...
Bc5 {[%clk 0:00:43.2]} 24. Nxe4 {[%clk 0:00:45.2]} 24... Qxe5 {[%clk 0:00:34.3]}
25. f4 {[%clk 0:00:34]} 25... Qd5 {[%clk 0:00:22.2]} 26. Nxc5 {[%clk 0:00:26.9]}
26... Qxc5 {[%clk 0:00:23.1]} 27. Qxd4 {[%clk 0:00:25]} 27... Qe7 {[%clk
0:00:06.6]} 28. b3 {[%clk 0:00:21.3]} 28... Rfd8 {[%clk 0:00:07.1]} 29. Ba3
{[%clk 0:00:21.7]} 1-0